bitfinex/quotes_BTCUSD_20250614
["timestamp","ask_amount","ask_price","bid_price","bid_amount"]
[1749917706393,0.29992312,104960.0,104950.0,0.25110352]
[1749917707458,0.29039569,104960.0,104950.0,0.25110352]
[1749917708381,0.26249569,104960.0,104950.0,0.25110352]
[1749917708802,0.26249569,104960.0,104950.0,0.30120097]
[1749917709489,0.26249569,104960.0,104950.0,0.25110352]
[1749917710565,0.20962316,104950.0,104940.0,0.20011425]
[1749917710790,0.02858703,104940.0,104930.0,0.25189254]
[1749917711017,0.00952943,104930.0,104920.0,0.54772219]
[1749917711236,0.00952943,104930.0,104920.0,0.74689309]
[1749917711455,0.20964332,104940.0,104930.0,0.20966293]
[1749917711684,0.20964332,104940.0,104930.0,0.20966312]
[1749917712162,0.20964332,104940.0,104930.0,0.22019291]
[1749917712594,0.00952843,104940.0,104930.0,0.29312243]
[1749917712818,0.02858593,104940.0,104930.0,0.29312243]
[1749917713255,0.03811491,104940.0,104930.0,0.29312243]
[1749917713465,0.02858584,104940.0,104930.0,0.29312243]
[1749917713675,0.03811482,104940.0,104930.0,0.29312243]
[1749917714087,0.02858584,104940.0,104930.0,0.29312243]
[1749917714622,0.03811473,104940.0,104930.0,0.29312243]
[1749917714842,0.21915123,104950.0,104940.0,0.20964314]
[1749917715044,0.21915123,104950.0,104940.0,0.20011425]
[1749917715250,0.21915123,104950.0,104940.0,0.20964332]
[1749917716234,0.22015123,104950.0,104940.0,0.20964332]
[1749917717024,0.22015123,104950.0,104940.0,0.2191723]
[1749917717440,0.22015123,104950.0,104940.0,0.2492723]
[1749917718275,0.03911147,104950.0,104940.0,0.3013298]
[1749917718727,0.02958331,104950.0,104940.0,0.3013298]
[1749917718911,0.001,104950.0,104940.0,0.3013298]
[1749917719123,0.01052771,104950.0,104940.0,0.3013298]
[1749917719338,0.001,104950.0,104940.0,1.23072267]
[1749917719552,0.001,104950.0,104940.0,0.65128078]
[1749917719761,0.001,104950.0,104940.0,0.55513156]
[1749917720772,0.07605394,104960.0,104950.0,0.24975087]
[1749917720981,0.07605394,104960.0,104950.0,0.29123087]
[1749917721227,0.07605385,104960.0,104950.0,0.29123087]
[1749917721787,0.0855811,104960.0,104950.0,0.29123087]
[1749917722196,0.07605385,104960.0,104950.0,0.29123087]
[1749917722808,0.06652678,104960.0,104950.0,0.29223087]
[1749917723142,0.06652678,104960.0,104950.0,0.32523087]
[1749917723589,0.06652678,104960.0,104950.0,0.32623087]
[1749917723736,0.0569998,104960.0,104950.0,0.40509836]
[1749917724240,0.07605376,104960.0,104950.0,0.40509836]
[1749917724824,0.06652669,104960.0,104950.0,0.40509836]
[1749917725039,0.07605367,104960.0,104950.0,0.32623087]
[1749917725455,0.03794638,104960.0,104950.0,0.32623087]
[1749917725659,0.04747309,104960.0,104950.0,0.32623087]
[1749917725840,0.00952671,104960.0,104950.0,0.32623087]
[1749917726251,0.2391112,104970.0,104960.0,0.24000301]
[1749917726446,0.2391112,104970.0,104960.0,0.2795299]
[1749917726671,0.04857894,104970.0,104960.0,0.2890567]
[1749917727420,0.04905624,104970.0,104960.0,0.2890567]
[1749917727985,0.0214773,104970.0,104960.0,0.34221982]
[1749917728192,0.06907262,104970.0,104960.0,0.34221982]
[1749917728447,0.0214773,104970.0,104960.0,0.34221982]
[1749917729556,0.0310031,104970.0,104960.0,0.34221982]
[1749917729738,0.03100301,104970.0,104960.0,0.34221982]
[1749917730074,0.03100301,104970.0,104960.0,0.49973982]
[1749917730522,0.0405289,104970.0,104960.0,0.49973982]
[1749917730723,0.03100301,104970.0,104960.0,0.49973982]
[1749917730927,0.0405289,104970.0,104960.0,0.49973982]
[1749917731128,0.03100301,104970.0,104960.0,0.49973982]
[1749917731352,0.0405289,104970.0,104960.0,0.49973982]
[1749917731710,0.03100301,104970.0,104960.0,0.49973982]
[1749917731909,0.04052899,104970.0,104960.0,0.49973982]
[1749917732237,0.03100301,104970.0,104960.0,0.49973982]
[1749917732475,0.0405289,104970.0,104960.0,0.49973982]
[1749917733081,0.05005506,104970.0,104960.0,0.4465767]
[1749917733389,0.05005488,104970.0,104960.0,0.4465767]
[1749917734639,0.05005497,104970.0,104960.0,0.4465767]
[1749917734850,0.0214773,104970.0,104960.0,0.4465767]
[1749917735037,0.0310031,104970.0,104960.0,0.4465767]
[1749917735411,0.04052899,104970.0,104960.0,0.4465767]
[1749917735620,0.03100301,104970.0,104960.0,0.4465767]
[1749917737023,0.0405289,104970.0,104960.0,0.4465767]
[1749917737446,0.03100301,104970.0,104960.0,0.4880167]
[1749917737662,0.0214773,104970.0,104960.0,0.55682782]
[1749917739152,0.0214773,104970.0,104960.0,0.65306958]
[1749917740900,0.21908824,104980.0,104970.0,0.27338322]
[1749917741152,0.26737878,104980.0,104970.0,0.0638]
[1749917741370,0.26737878,104980.0,104960.0,0.65742922]
[1749917741371,0.01905169,104970.0,104960.0,0.65742922]
[1749917741583,0.00952571,104970.0,104960.0,0.65842922]
[1749917742001,0.00952571,104970.0,104960.0,0.65642922]
[1749917742571,0.24832854,104980.0,104970.0,0.25040938]
[1749917742572,0.03876492,104980.0,104970.0,0.25040938]
[1749917742781,0.03876492,104980.0,104970.0,0.3745861]
[1749917742995,0.06734005,104980.0,104970.0,0.3745861]
[1749917743697,0.24832836,104980.0,104970.0,0.04144]
[1749917743940,0.30952836,104980.0,104970.0,0.05096644]
[1749917744157,0.30952836,104980.0,104970.0,0.25102331]
[1749917745051,0.09111534,104980.0,104970.0,0.22863536]
[1749917745278,0.06734078,104980.0,104970.0,0.30097536]
[1749917745495,0.06734078,104980.0,104970.0,0.37002845]
[1749917745713,0.07686631,104980.0,104970.0,0.37002845]
[1749917746144,0.07686631,104980.0,104970.0,0.40202845]
[1749917746356,0.07686631,104980.0,104970.0,0.39702845]
[1749917747172,0.07686631,104980.0,104970.0,0.29597536]
[1749917747412,0.05781479,104980.0,104970.0,0.29597536]
[1749917747626,0.06733987,104980.0,104970.0,0.32767536]
[1749917749290,0.07686522,104980.0,104970.0,0.32767536]
[1749917750164,0.08639139,104980.0,104970.0,0.32767536]
[1749917750574,0.07686586,104980.0,104970.0,0.32767536]
[1749917752175,0.06734042,104980.0,104970.0,0.32767536]
[1749917752378,0.05781507,104980.0,104970.0,0.32767536]
[1749917752595,0.0482899,104980.0,104970.0,0.32767536]
[1749917753988,0.03876492,104980.0,104970.0,0.39619845]
[1749917754183,0.0482899,104980.0,104970.0,0.39619845]
[1749917754390,0.05781507,104980.0,104970.0,0.39619845]
[1749917754563,0.0482899,104980.0,104970.0,0.32767536]
[1749917755609,0.05781525,104980.0,104970.0,0.32763536]
[1749917755818,0.06734032,104980.0,104970.0,0.32763536]
[1749917756124,0.06734014,104980.0,104970.0,0.32763536]
[1749917756421,0.05781497,104980.0,104970.0,0.32763536]
[1749917756648,0.0482899,104980.0,104970.0,0.32763536]
[1749917756829,0.04828981,104980.0,104970.0,0.32763536]
[1749917759109,0.05781479,104980.0,104970.0,0.32763536]
[1749917759315,0.06733996,104980.0,104970.0,0.32763536]
[1749917759517,0.05781479,104980.0,104970.0,0.32763536]
[1749917760313,0.50261855,104990.0,104970.0,0.33716107]
[1749917760527,0.0285755,104980.0,104970.0,0.29123463]
[1749917760749,0.0285755,104980.0,104970.0,0.33263463]
[1749917760961,0.02857504,104980.0,104970.0,0.33263463]
[1749917761204,0.03810039,104980.0,104970.0,0.33263463]
[1749917762950,0.12298109,104990.0,104970.0,0.33263463]
[1749917763165,0.12298146,104990.0,104970.0,0.33263463]
[1749917763294,0.00952517,104980.0,104970.0,0.39829697]
[1749917763523,0.01905015,104980.0,104970.0,0.39829697]
[1749917763760,0.0285755,104980.0,104970.0,0.39829697]
[1749917764477,0.03810057,104980.0,104970.0,0.39829697]
[1749917764839,0.0476261,104980.0,104970.0,0.32070892]
[1749917765045,0.04762601,104980.0,104970.0,0.32070892]
[1749917765460,0.03810057,104980.0,104970.0,0.32070892]
[1749917766089,0.01905005,104980.0,104970.0,0.32070892]
[1749917766435,0.00952498,104980.0,104970.0,0.32070892]
[1749917766671,0.0095248,104980.0,104970.0,0.32070847]
[1749917766861,0.0095248,104980.0,104970.0,0.38757824]
[1749917767783,0.01904978,104980.0,104970.0,0.32070847]
[1749917767998,0.0095248,104980.0,104970.0,0.32070847]
[1749917768173,0.48203352,104990.0,104980.0,0.2190887]
[1749917768327,0.42612572,104990.0,104980.0,0.22861368]
[1749917768521,0.42612572,104990.0,104980.0,0.23813894]
[1749917768765,0.42612572,104990.0,104980.0,0.2795383]
[1749917768964,0.43565034,104990.0,104980.0,0.2795383]
[1749917769179,0.46412651,104990.0,104980.0,0.33256519]
[1749917769400,0.47365113,104990.0,104980.0,0.35494021]
[1749917769624,0.48317584,104990.0,104980.0,0.35494021]
[1749917770052,0.67367017,104990.0,104980.0,0.30191332]
[1749917770349,0.665146,104990.0,104980.0,0.28286344]
[1749917770571,0.65562035,104990.0,104980.0,0.25096344]
[1749917770725,0.65562035,104990.0,104980.0,0.2604887]
[1749917771960,0.64609628,104990.0,104980.0,0.2604887]
[1749917772172,0.63657166,104990.0,104980.0,0.25096344]
[1749917772584,0.63657167,104990.0,104980.0,0.25096344]
[1749917772982,0.63657169,104990.0,104980.0,0.25096344]
[1749917773403,0.63657169,104990.0,104980.0,0.27001387]
[1749917775032,0.26794769,104990.0,104980.0,0.27001387]
[1749917775438,0.26794832,104990.0,104980.0,0.27001387]
[1749917775870,0.26794832,104990.0,104980.0,0.2604887]
[1749917776085,0.26794832,104990.0,104980.0,0.25096344]
[1749917776293,0.2395834,104970.0,104950.0,0.25286693]
[1749917776491,0.20960229,104960.0,104950.0,0.23247257]
[1749917776695,0.21913008,104960.0,104950.0,0.25150073]
[1749917776898,0.21913008,104960.0,104950.0,0.27055678]
[1749917777062,0.21913008,104960.0,104950.0,0.28008467]
[1749917777259,0.26750319,104960.0,104950.0,0.0418773]
[1749917777488,2.31931532,104960.0,104950.0,0.0418773]
[1749917777697,2.34794832,104960.0,104950.0,0.0448773]
[1749917777898,2.34794832,104960.0,104950.0,0.0478773]
[1749917778108,2.32004794,104960.0,104950.0,0.0064773]
[1749917778308,2.32004794,104960.0,104950.0,0.0448773]
[1749917778529,2.32004794,104960.0,104950.0,0.0458773]
[1749917779314,2.32004802,104960.0,104950.0,0.0458773]
[1749917779710,2.32004802,104960.0,104950.0,0.0428773]
[1749917779913,2.32004802,104960.0,104950.0,0.0458773]
[1749917781518,2.32004804,104960.0,104950.0,0.0458773]
[1749917781871,2.31111919,104960.0,104950.0,0.0458773]
[1749917783758,2.42736095,104960.0,104950.0,0.0044773]
[1749917783941,2.42736095,104960.0,104950.0,0.0458773]
[1749917784301,2.45526095,104960.0,104950.0,0.0458773]
[1749917785035,2.42736095,104960.0,104950.0,0.0458773]
[1749917785231,2.42713095,104960.0,104950.0,0.0458773]
[1749917785432,2.23681217,104960.0,104950.0,0.0044773]
[1749917785772,2.42736095,104960.0,104950.0,0.0458373]
[1749917786925,0.35447795,104960.0,104950.0,0.0458373]
[1749917789013,0.41457795,104960.0,104950.0,0.0458373]
[1749917789224,0.51072717,104960.0,104950.0,0.0458373]
[1749917789442,0.41457795,104960.0,104950.0,0.0458373]
[1749917789879,0.38667795,104960.0,104950.0,0.0458373]
[1749917790329,0.35447795,104960.0,104950.0,0.0044773]
[1749917790511,0.35447795,104960.0,104950.0,0.0458373]
[1749917791640,0.38667795,104960.0,104950.0,0.0458373]
[1749917791840,0.35447795,104960.0,104950.0,0.0458373]
[1749917792477,0.35447795,104960.0,104950.0,0.0044773]
[1749917792686,0.35447795,104960.0,104950.0,0.0458373]
[1749917794764,0.35447795,104960.0,104950.0,0.0044773]
[1749917794957,0.35447795,104960.0,104950.0,0.0458373]
[1749917795150,0.35447795,104960.0,104950.0,0.05536564]
[1749917795521,0.35447795,104960.0,104950.0,0.24593257]
[1749917795754,0.4411001,104960.0,104950.0,0.23640423]
[1749917795962,0.34495088,104960.0,104950.0,0.24593257]
[1749917797828,0.33542354,104960.0,104950.0,0.0458373]
[1749917798744,0.33542354,104960.0,104950.0,0.24593248]
[1749917799717,0.33542354,104960.0,104950.0,0.23640423]
[1749917799905,0.33542354,104960.0,104950.0,0.24593257]
[1749917800996,0.35447795,104960.0,104950.0,0.31896082]
[1749917801213,0.1534557,104960.0,104950.0,0.33801651]
[1749917801656,0.14392845,104960.0,104950.0,0.39182945]
[1749917801866,0.12482261,104960.0,104950.0,0.39182945]
[1749917802075,0.10576847,104960.0,104950.0,0.33801651]
[1749917802260,0.02858067,104960.0,104950.0,0.33801651]
[1749917802935,0.03810792,104960.0,104950.0,0.33801651]
[1749917803578,0.02858067,104960.0,104950.0,0.33801651]
[1749917803787,0.03810792,104960.0,104950.0,0.33801651]
[1749917804003,0.04763526,104960.0,104950.0,0.33801651]
[1749917804226,0.03815889,104970.0,104960.0,0.29085706]
[1749917804440,0.26628872,104980.0,104970.0,0.2717834]
[1749917804671,0.34934175,104980.0,104970.0,0.0622]
[1749917804881,0.34934175,104980.0,104970.0,0.0319]
[1749917804882,0.34872425,104980.0,104970.0,0.0319]
[1749917805088,0.37154517,104980.0,104970.0,0.0319]
[1749917805297,0.34291617,104980.0,104970.0,0.0319]
[1749917805515,0.68291617,104980.0,104970.0,0.0319]
[1749917805722,0.68391617,104980.0,104970.0,0.0319]
[1749917806283,0.7124401,104980.0,104970.0,0.0319]
[1749917806739,0.68391617,104980.0,104970.0,0.0319]
[1749917807491,0.68493286,104980.0,104970.0,0.0319]
[1749917807912,0.68493285,104980.0,104970.0,0.0319]
[1749917808121,0.68493285,104980.0,104970.0,0.07326]
[1749917808552,0.67600655,104980.0,104970.0,0.10326]
[1749917808761,0.67002604,104980.0,104970.0,0.10326]
[1749917808974,0.67002604,104980.0,104970.0,0.32793494]
[1749917809189,0.38327037,104980.0,104970.0,0.35651324]
[1749917809400,0.23953964,104980.0,104970.0,0.34698735]
[1749917809608,0.23061404,104980.0,104970.0,0.30331696]
[1749917809814,0.22108897,104980.0,104970.0,0.30331696]
[1749917810051,0.21156362,104980.0,104970.0,0.30331696]
[1749917810257,0.20203809,104980.0,104970.0,0.30331696]
[1749917811097,0.19251247,104980.0,104970.0,0.10326]
[1749917811304,0.19251247,104980.0,104970.0,0.30331706]
[1749917812774,0.19251247,104980.0,104970.0,0.3128434]
[1749917813202,0.20203791,104980.0,104970.0,0.3128434]
[1749917813687,0.20203791,104980.0,104970.0,0.30331706]
[1749917814398,0.03057522,104980.0,104970.0,0.36413514]
[1749917814649,0.03057522,104980.0,104970.0,0.33189509]
[1749917815366,0.04010066,104980.0,104970.0,0.31284322]
[1749917815592,0.22108833,104980.0,104970.0,0.0619]
[1749917815819,0.20203791,104980.0,104970.0,0.10322]
[1749917816025,0.19251247,104980.0,104970.0,0.10322]
[1749917816448,0.19251247,104980.0,104970.0,0.0619]
[1749917816679,0.19251247,104980.0,104970.0,0.10322]
[1749917816898,0.19251247,104980.0,104970.0,0.11274653]
[1749917817559,0.19251247,104980.0,104970.0,0.10322]
[1749917817789,0.55000099,104980.0,104970.0,0.10322]
[1749917818007,0.55531317,104980.0,104970.0,0.10322]
[1749917818213,0.56421949,104980.0,104970.0,0.10322]
[1749917819330,0.56421955,104980.0,104970.0,0.10322]
[1749917819536,0.55531317,104980.0,104970.0,0.10322]
[1749917820412,0.55531317,104980.0,104970.0,0.30327715]
[1749917820622,0.55531317,104980.0,104970.0,0.33741719]
[1749917821265,0.55531317,104980.0,104970.0,0.30327715]
[1749917821698,0.53251247,104980.0,104970.0,0.30327715]
[1749917822554,0.342,104980.0,104970.0,0.30327715]
[1749917822795,0.5610887,104980.0,104970.0,0.33185582]
[1749917823036,0.5610887,104980.0,104970.0,0.34138171]
[1749917823037,0.35152489,104980.0,104970.0,0.34138171]
[1749917823263,0.35152489,104980.0,104970.0,0.39457449]
[1749917823490,0.36105006,104980.0,104970.0,0.39457449]
[1749917823740,0.37057541,104980.0,104970.0,0.39457449]
[1749917823974,0.36105006,104980.0,104970.0,0.39457449]
[1749917824191,0.3705755,104980.0,104970.0,0.39457449]
[1749917824630,0.37057541,104980.0,104970.0,0.39457449]
[1749917825550,0.37057532,104980.0,104970.0,0.39457449]
[1749917825769,0.36105006,104980.0,104970.0,0.39457449]
[1749917825986,0.37057532,104980.0,104970.0,0.39457449]
[1749917826426,0.38010076,104980.0,104970.0,0.39457449]
[1749917827564,0.37057532,104980.0,104970.0,0.39457449]
[1749917827782,0.38010076,104980.0,104970.0,0.39457449]
[1749917827997,0.37057532,104980.0,104970.0,0.39457449]
[1749917828212,0.36105006,104980.0,104970.0,0.39457449]
[1749917828431,0.37057513,104980.0,104970.0,0.39457449]
[1749917828652,0.37057513,104980.0,104970.0,0.34138171]
[1749917830595,0.37057504,104980.0,104970.0,0.34138171]
[1749917830993,0.002,104980.0,104970.0,0.34138171]
[1749917831218,0.01152489,104980.0,104970.0,0.34138171]
[1749917831432,0.02104987,104980.0,104970.0,0.39373449]
[1749917831956,0.04010048,104980.0,104970.0,0.39373449]
[1749917832107,0.03057504,104980.0,104970.0,0.39373449]
[1749917832306,0.0401003,104980.0,104970.0,0.39373449]
[1749917832718,0.04962574,104980.0,104970.0,0.34054171]
[1749917837175,0.04962638,104980.0,104970.0,0.34054171]
[1749917837982,0.04010085,104980.0,104970.0,0.34054171]
[1749917838120,0.01152498,104980.0,104970.0,0.34054171]
[1749917838335,0.02105024,104980.0,104970.0,0.34054171]
[1749917838540,0.02105024,104980.0,104970.0,0.39365049]
[1749917839369,0.002,104980.0,104970.0,0.39365049]
[1749917839575,0.01152498,104980.0,104970.0,0.39365049]
[1749917839780,0.002,104980.0,104970.0,0.39365049]
[1749917840193,0.22108797,104980.0,104970.0,0.31196359]
[1749917840402,0.02105006,104980.0,104970.0,0.34054198]
[1749917840620,0.0305755,104980.0,104970.0,0.34054198]
[1749917840841,0.02957541,104980.0,104970.0,0.34054198]
[1749917841265,0.02857541,104980.0,104970.0,0.34154198]
[1749917841723,0.01905006,104980.0,104970.0,0.34154198]
[1749917842409,0.43831553,104990.0,104980.0,0.25078851]
[1749917842636,0.43831553,104990.0,104980.0,0.28378851]
[1749917842840,0.62880994,104990.0,104980.0,0.2837887]
[1749917843195,0.62880987,104990.0,104980.0,0.2837887]
[1749917843566,0.42979083,104990.0,104980.0,0.2837887]
[1749917843775,0.43079083,104990.0,104980.0,0.29331368]
[1749917843983,0.44031482,104990.0,104980.0,0.29331368]
[1749917844393,0.44031482,104990.0,104980.0,0.2837887]
[1749917844394,0.63080915,104990.0,104980.0,0.2837887]
[1749917844848,0.63080638,104990.0,104980.0,0.3251087]
[1749917845456,0.63080638,104990.0,104980.0,0.33463387]
[1749917845655,0.63080671,104990.0,104980.0,0.33463387]
[1749917848317,0.62187658,104990.0,104980.0,0.33463387]
[1749917848556,0.63080671,104990.0,104980.0,0.33463387]
[1749917848776,0.25280592,104990.0,104980.0,0.33463387]
[1749917849008,0.25280592,104990.0,104980.0,0.34415894]
[1749917849907,0.25280567,104990.0,104980.0,0.34415894]
[1749917850352,0.25280567,104990.0,104980.0,0.33463387]
[1749917850838,0.29243169,104990.0,104980.0,0.33463387]
[1749917851482,0.29243169,104990.0,104980.0,0.38715032]
[1749917851931,0.29243159,104990.0,104980.0,0.33463387]
[1749917852161,0.08288838,104990.0,104980.0,0.33463387]
[1749917852376,0.08288838,104990.0,104980.0,0.34415885]
[1749917852595,0.07912876,104990.0,104980.0,0.34415885]
[1749917853262,0.06960487,104990.0,104980.0,0.34415885]
[1749917853481,0.0791294,104990.0,104980.0,0.34415885]
[1749917853933,0.06960487,104990.0,104980.0,0.34415885]
[1749917854196,0.07912893,104990.0,104980.0,0.34415885]
[1749917854895,0.05055597,104990.0,104980.0,0.40518959]
[1749917855133,0.06008021,104990.0,104980.0,0.40518959]
[1749917855362,0.06008122,104990.0,104980.0,0.40518959]
[1749917855625,0.05115001,104990.0,104980.0,0.40518959]
[1749917855875,0.05015001,104990.0,104980.0,0.40518959]
[1749917856122,0.06919844,104990.0,104980.0,0.40518959]
[1749917856330,0.06919835,104990.0,104980.0,0.40518959]
[1749917856761,0.05967409,104990.0,104980.0,0.40518959]
[1749917857291,0.07772288,104990.0,104980.0,0.56242959]
[1749917857874,0.07772288,104990.0,104980.0,0.56542959]
[1749917858085,0.07772288,104990.0,104980.0,0.55590461]
[1749917858324,0.26821721,104990.0,104980.0,0.55790461]
[1749917858539,0.24916914,104990.0,104980.0,0.0697]
[1749917858762,0.25809997,104990.0,104980.0,0.0367]
[1749917858997,0.28090847,104990.0,104980.0,0.04628]
[1749917859209,0.28090847,104990.0,104980.0,0.005]
[1749917859673,0.3134094,104990.0,104980.0,0.04428]
[1749917859941,0.43816179,104990.0,104980.0,0.04428]
[1749917860183,0.46686179,104990.0,104980.0,0.04428]
[1749917860399,0.46694887,104990.0,104980.0,0.003]
[1749917860622,0.20003809,104980.0,104970.0,0.07448]
[1749917860838,0.2318161,104980.0,104970.0,0.07448]
[1749917861507,0.23181603,104980.0,104970.0,0.0332]
[1749917861724,0.23181603,104980.0,104960.0,0.066]
[1749917861725,0.19053062,104970.0,104960.0,0.066]
[1749917861951,0.23181272,104970.0,104960.0,0.07448]
[1749917862161,0.19053062,104970.0,104960.0,0.07448]
[1749917862383,0.21337859,104970.0,104960.0,0.08400743]
[1749917862595,0.19053062,104970.0,104960.0,0.08400743]
[1749917862817,0.19053062,104970.0,104960.0,0.28408355]
[1749917863028,0.19053062,104970.0,104960.0,0.2936108]
[1749917863243,0.01905241,104970.0,104960.0,0.3237099]
[1749917863701,0.03810392,104970.0,104960.0,0.3237099]
[1749917863970,0.03810392,104970.0,104960.0,0.3247099]
[1749917864200,0.04763026,104970.0,104960.0,0.3247099]
[1749917864853,0.03810392,104970.0,104960.0,0.3247099]
[1749917865068,0.00952571,104970.0,104960.0,0.3247099]
[1749917865298,0.02857794,104970.0,104960.0,0.3247099]
[1749917866611,0.02857785,104970.0,104960.0,0.3247099]
[1749917866811,0.02857776,104970.0,104960.0,0.3247099]
[1749917867453,0.01905169,104970.0,104960.0,0.3247099]
[1749917867877,0.00952571,104970.0,104960.0,0.3247099]
[1749917868084,0.04129321,104980.0,104970.0,0.28280911]
[1749917868298,0.02857531,104980.0,104970.0,0.29233482]
[1749917868738,0.03810075,104980.0,104970.0,0.29233482]
[1749917868948,0.18668479,104990.0,104980.0,0.21908851]
[1749917869188,0.18668479,104990.0,104980.0,0.29231387]
[1749917869189,0.49491675,104990.0,104980.0,0.29231387]
[1749917869394,0.386703,104990.0,104980.0,0.29231387]
[1749917869608,0.15491675,104990.0,104980.0,0.30183885]
[1749917869843,0.35493579,104990.0,104980.0,0.29231387]
[1749917870049,0.36385466,104990.0,104980.0,0.29231387]
[1749917870256,0.36385466,104990.0,104980.0,0.30183894]
[1749917870480,0.16383556,104990.0,104980.0,0.3431183]
[1749917870754,0.16944146,104990.0,104980.0,0.33359332]
[1749917870964,0.16644146,104990.0,104980.0,0.33359332]
[1749917871175,0.16644146,104990.0,104980.0,0.33459332]
[1749917871388,0.16444146,104990.0,104980.0,0.3441183]
[1749917871830,0.16444146,104990.0,104980.0,0.33459332]
[1749917872044,0.16444074,104990.0,104980.0,0.3441183]
[1749917872260,0.05867436,104990.0,104980.0,0.39663069]
[1749917872698,0.06819871,104990.0,104980.0,0.39663069]
[1749917873570,0.06819871,104990.0,104980.0,0.3441183]
[1749917874535,0.0491501,104990.0,104980.0,0.3441183]
[1749917874998,0.05867436,104990.0,104980.0,0.3441183]
[1749917876513,0.06819889,104990.0,104980.0,0.3441183]
[1749917877757,0.07772351,104990.0,104980.0,0.3441183]
[1749917878851,0.06819889,104990.0,104980.0,0.3441183]
[1749917879330,0.26821784,104990.0,104980.0,0.30255332]
[1749917879550,0.27774255,104990.0,104980.0,0.30255332]
[1749917880897,0.06819889,104990.0,104980.0,0.3120783]
[1749917881120,0.06819889,104990.0,104980.0,0.3427783]
[1749917881769,0.07772351,104990.0,104980.0,0.3120783]
[1749917882633,0.06819889,104990.0,104980.0,0.3427783]
[1749917882901,0.07772351,104990.0,104980.0,0.3427783]
[1749917883992,0.26821847,104990.0,104980.0,0.28248825]
[1749917884220,0.26821847,104990.0,104980.0,0.28350308]
[1749917884438,0.34659626,104990.0,104980.0,0.28350362]
[1749917884657,0.3555138,104990.0,104980.0,0.28350362]
[1749917885312,0.34598935,104990.0,104980.0,0.28350362]
[1749917885534,0.34598931,104990.0,104980.0,0.29302897]
[1749917886663,0.25808726,104990.0,104980.0,0.29302897]
[1749917886850,0.24916968,104990.0,104980.0,0.29302897]
[1749917887060,0.24916968,104990.0,104980.0,0.30255423]
[1749917887282,0.05867499,104990.0,104980.0,0.34397921]
[1749917887500,0.05867499,104990.0,104980.0,0.3439794]
[1749917887949,0.05867499,104990.0,104980.0,0.34397885]
[1749917888386,0.05867499,104990.0,104980.0,0.33445378]
[1749917888611,0.06819898,104990.0,104980.0,0.34397885]
[1749917889040,0.05867445,104990.0,104980.0,0.3439783]
[1749917889493,0.06819898,104990.0,104980.0,0.3439783]
[1749917889922,0.06819898,104990.0,104980.0,0.33445332]
[1749917890781,0.06819889,104990.0,104980.0,0.33445332]
[1749917890986,0.06819889,104990.0,104980.0,0.32492825]
[1749917891412,0.06819889,104990.0,104980.0,0.33445332]
[1749917891844,0.06819889,104990.0,104980.0,0.32492815]
[1749917892493,0.07772351,104990.0,104980.0,0.32492815]
[1749917892700,0.06819889,104990.0,104980.0,0.32492815]
[1749917892911,0.0491501,104990.0,104980.0,0.32492815]
[1749917893170,0.04915001,104990.0,104980.0,0.33445313]
[1749917893377,0.05867418,104990.0,104980.0,0.33445313]
[1749917893808,0.04915001,104990.0,104980.0,0.33445313]
[1749917894663,0.03962602,104990.0,104980.0,0.33445313]
[1749917895095,0.62986177,105000.0,104990.0,0.22079433]
[1749917895301,0.62986177,105000.0,104990.0,0.23031904]
[1749917895302,0.69753374,105000.0,104990.0,0.23031904]
[1749917895512,0.69753374,105000.0,104990.0,0.23984366]
[1749917895750,0.72609371,105000.0,104990.0,0.20954366]
[1749917895965,0.72609371,105000.0,104990.0,0.20001904]
[1749917896406,0.72809371,105000.0,104990.0,0.20001904]
[1749917896616,0.00952435,104990.0,104980.0,0.32252741]
[1749917897048,0.0568487,104990.0,104980.0,0.31300252]
[1749917897259,0.01904888,104990.0,104980.0,0.31300252]
[1749917897682,0.04189685,104990.0,104980.0,0.31300252]
[1749917897896,0.04189676,104990.0,104980.0,0.31300252]
[1749917898118,0.05142129,104990.0,104980.0,0.31300252]
[1749917898613,0.06986623,104990.0,104980.0,0.31300252]
[1749917898839,0.06986623,104990.0,104980.0,0.31400252]
[1749917899072,0.06986587,104990.0,104980.0,0.31400252]
[1749917899305,0.0494569,104990.0,104980.0,0.31400252]
[1749917899555,0.05898143,104990.0,104980.0,0.31400252]
[1749917901387,0.06851722,104990.0,104980.0,0.31400252]
[1749917901599,0.10645345,104990.0,104980.0,0.31400252]
[1749917902464,0.09753988,104990.0,104980.0,0.31400252]
[1749917902678,0.10647136,104990.0,104980.0,0.31400252]
[1749917906277,0.10647161,104990.0,104980.0,0.31400252]
[1749917906501,0.10647114,104990.0,104980.0,0.31400252]
[1749917907162,0.10647089,104990.0,104980.0,0.31400252]
[1749917907847,0.29696522,104990.0,104980.0,0.31400308]
[1749917908057,0.29696522,104990.0,104980.0,0.001]
[1749917908058,0.81607093,104990.0,104980.0,0.001]
[1749917908274,2.92568584,104990.0,104980.0,0.001]
[1749917908480,3.14568584,104990.0,104980.0,0.001]
[1749917908920,3.14568755,104990.0,104980.0,0.001]
[1749917909350,3.14668755,104990.0,104980.0,0.001]
[1749917909560,3.14668753,104990.0,104980.0,0.001]
[1749917910416,3.14668766,104990.0,104980.0,0.001]
[1749917910632,3.14668766,104990.0,104960.0,0.0305]
[1749917910633,0.20958322,104970.0,104960.0,0.0305]
[1749917910849,2.44289195,104970.0,104960.0,0.04124]
[1749917911072,2.51121385,104970.0,104960.0,0.04124]
[1749917911290,0.20007621,104960.0,104950.0,0.0305]
[1749917911504,0.20007621,104960.0,104940.0,0.0634]
[1749917911505,0.20009527,104950.0,104940.0,0.0634]
[1749917911740,0.20011425,104940.0,104930.0,0.38992124]
[1749917911953,0.20964296,104940.0,104930.0,0.38992124]
[1749917912163,0.21917194,104940.0,104930.0,0.40898064]
[1749917912372,0.06770763,104940.0,104930.0,0.40898064]
[1749917912581,0.06770763,104940.0,104930.0,0.41851016]
[1749917912795,0.05822611,104940.0,104930.0,0.41851016]
[1749917913419,0.06775518,104940.0,104930.0,0.47941162]
[1749917914282,0.06775518,104940.0,104930.0,0.48041162]
[1749917914714,0.25834027,104940.0,104930.0,0.26453341]
[1749917914957,0.25834081,104940.0,104930.0,0.28359309]
[1749917915164,0.25834081,104940.0,104930.0,0.32483309]
[1749917915380,0.25834081,104940.0,104930.0,0.33436279]
[1749917915622,0.25834081,104940.0,104930.0,0.3153033]
[1749917915856,0.25834081,104940.0,104930.0,0.33436261]
[1749917916282,0.25834081,104940.0,104930.0,0.29312261]
[1749917916487,0.24881183,104940.0,104930.0,0.31530339]
[1749917916694,0.24881183,104940.0,104930.0,0.32483318]
[1749917916921,0.24881183,104940.0,104930.0,0.33436288]
[1749917917129,0.24881183,104940.0,104930.0,0.32483318]
[1749917917336,0.23928276,104940.0,104930.0,0.31530339]
[1749917917544,0.23928276,104940.0,104930.0,0.32483318]
[1749917917747,0.23928276,104940.0,104930.0,0.31530339]
[1749917917961,0.22975351,104940.0,104930.0,0.07274]
[1749917918181,0.44717932,104940.0,104930.0,0.04224]
[1749917918398,0.44717932,104940.0,104930.0,0.001]